bitfinex/quotes_BTCUSD_20240902
["timestamp","ask_amount","ask_price","bid_price","bid_amount"]
[1725292690904,0.170351,58703.0,58699.0,0.17036]
[1725292691442,0.340682,58706.0,58697.0,0.003]
[1725292691443,1.192544,58698.0,58697.0,0.003]
[1725292691659,1.192544,58698.0,58691.0,0.0004]
[1725292691660,0.17038,58692.0,58691.0,0.0004]
[1725292693901,0.512141,58692.0,58691.0,0.0044]
[1725292694104,0.17238,58692.0,58691.0,0.0044]
[1725292695689,0.002,58692.0,58691.0,0.0044]
[1725292695925,0.002,58692.0,58691.0,0.085]
[1725292696141,0.002,58692.0,58691.0,0.68235]
[1725292696599,0.002,58692.0,58691.0,1.023117]
[1725292696809,0.002,58692.0,58691.0,0.68235]
[1725292697871,0.002,58692.0,58691.0,0.0044]
[1725292698328,0.17238,58692.0,58691.0,0.0044]
[1725292698567,0.17238,58692.0,58691.0,0.01458239]
[1725292699247,0.17038,58692.0,58691.0,0.01458239]
[1725292699491,0.511141,58692.0,58691.0,0.01458239]
[1725292699736,0.511141,58692.0,58691.0,0.0044]
[1725292699967,0.511141,58692.0,58691.0,0.0145959]
[1725292700208,0.511141,58692.0,58691.0,0.0044]
[1725292700451,0.511141,58692.0,58691.0,0.0145959]
[1725292700723,0.911902,58692.0,58691.0,0.0044]
[1725292700951,0.911902,58692.0,58691.0,0.0145959]
[1725292701174,0.911902,58692.0,58691.0,0.0044]
[1725292701634,0.572141,58692.0,58691.0,0.0004]
[1725292701873,0.513141,58692.0,58691.0,0.0044]
[1725292702329,0.853902,58692.0,58691.0,0.0044]
[1725292702649,0.513141,58692.0,58691.0,0.0044]
[1725292704648,0.002,58692.0,58691.0,0.0044]
[1725292704904,0.002,58692.0,58691.0,0.0653]
[1725292704905,0.17238,58692.0,58691.0,0.0653]
[1725292705374,0.17238,58692.0,58691.0,0.07550281]
[1725292705611,0.17238,58692.0,58691.0,0.24588581]
[1725292705612,0.002,58692.0,58691.0,0.24588581]
[1725292705849,0.002,58692.0,58691.0,1.03101981]
[1725292707235,0.002,58692.0,58691.0,0.15610281]
[1725292707476,0.002,58692.0,58691.0,0.24588581]
[1725292707725,0.002,58692.0,58691.0,0.07550281]
[1725292707965,0.17238,58692.0,58691.0,0.01460281]
[1725292708226,0.513141,58692.0,58691.0,0.01460281]
[1725292708471,0.853902,58692.0,58691.0,0.01460281]
[1725292708711,0.915602,58692.0,58691.0,0.0044]
[1725292710029,0.997902,58692.0,58691.0,0.0044]
[1725292711614,1.338663,58692.0,58691.0,0.0044]
[1725292716195,1.53250476,58692.0,58691.0,0.0044]
[1725292718662,2.22402676,58692.0,58691.0,0.0044]
[1725292718874,1.88326576,58692.0,58691.0,0.0044]
[1725292719899,1.88326576,58692.0,58691.0,0.0004]
[1725292719900,1.88226576,58692.0,58691.0,0.0004]
[1725292720103,1.88126576,58692.0,58691.0,0.0004]
[1725292720308,1.88426576,58692.0,58691.0,0.0004]
[1725292720550,1.88726576,58692.0,58691.0,0.0004]
[1725292720760,1.88126576,58692.0,58691.0,0.0004]
[1725292720967,1.88226576,58692.0,58691.0,0.0004]
[1725292721177,1.88526576,58692.0,58691.0,0.0004]
[1725292722501,2.0538174,58692.0,58691.0,0.0004]
[1725292723127,1.88526576,58692.0,58691.0,0.0004]
[1725292724186,1.88726576,58692.0,58691.0,0.0004]
[1725292724399,1.88526576,58692.0,58691.0,0.0004]
[1725292724603,1.88726576,58692.0,58691.0,0.0004]
[1725292725023,1.88526576,58692.0,58691.0,0.0004]
[1725292726340,3.0132764,58692.0,58691.0,1e-06]
[1725292726562,2.9414884,58692.0,58691.0,1e-06]
[1725292726804,2.44981522,58692.0,58691.0,1e-06]
[1725292727017,2.34802676,58692.0,58691.0,1e-06]
[1725292727236,2.34402676,58692.0,58691.0,1e-06]
[1725292727448,2.35802676,58692.0,58691.0,1e-06]
[1725292727866,2.37002676,58692.0,58691.0,1e-06]
[1725292728307,2.5405784,58692.0,58691.0,1e-06]
[1725292728958,2.37202676,58692.0,58691.0,1e-06]
[1725292730579,1.220663,58692.0,58691.0,1e-06]
[1725292730811,1.561424,58692.0,58691.0,1e-06]
[1725292731695,1.547424,58692.0,58691.0,1e-06]
[1725292732332,1.561424,58692.0,58691.0,1e-06]
[1725292732745,1.547424,58692.0,58691.0,1e-06]
[1725292733159,1.643324,58692.0,58691.0,1e-06]
[1725292733616,1.629324,58692.0,58691.0,1e-06]
[1725292733827,1.642324,58692.0,58691.0,1e-06]
[1725292734031,1.628324,58692.0,58691.0,1e-06]
[1725292734242,1.640324,58692.0,58691.0,1e-06]
[1725292735534,1.82087564,58692.0,58691.0,1e-06]
[1725292735981,1.81887564,58692.0,58691.0,1e-06]
[1725292736341,1.558424,58692.0,58691.0,1e-06]
[1725292738874,1.75226576,58692.0,58691.0,1e-06]
[1725292739081,1.41150476,58692.0,58691.0,0.140001]
[1725292739231,1.41150476,58692.0,58691.0,1e-06]
[1725292739441,1.217663,58692.0,58691.0,1e-06]
[1725292740167,1.41150476,58692.0,58691.0,1e-06]
[1725292741874,1.55365524,58692.0,58691.0,1e-06]
[1725292743000,1.75226576,58692.0,58691.0,1e-06]
[1725292744076,1.76226576,58692.0,58691.0,1e-06]
[1725292745733,1.76226576,58692.0,58682.0,0.062]
[1725292745734,1.192849,58683.0,58682.0,0.061828]
[1725292746211,1.192849,58683.0,58682.0,0.07275654]
[1725292746657,1.192849,58683.0,58682.0,0.061828]
[1725292747084,1.195849,58683.0,58682.0,0.061828]
[1725292747514,1.196849,58683.0,58682.0,0.061828]
[1725292747975,0.856035,58683.0,58682.0,0.061828]
[1725292749313,0.9757182,58683.0,58682.0,0.061828]
[1725292749525,0.9757182,58683.0,58679.0,0.1399]
[1725292749526,0.852077,58680.0,58679.0,0.1399]
[1725292749948,1.192908,58680.0,58679.0,0.1399]
[1725292751806,1.192908,58680.0,58679.0,0.0645]
[1725292754118,1.193908,58680.0,58679.0,0.0645]
[1725292754844,1.192908,58680.0,58679.0,0.0645]
[1725292755063,1.195908,58680.0,58679.0,0.0645]
[1725292755282,1.198908,58680.0,58679.0,0.0645]
[1725292755930,1.195908,58680.0,58679.0,0.0645]
[1725292756138,1.199908,58680.0,58679.0,0.0645]
[1725292756433,1.196908,58680.0,58679.0,0.0645]
[1725292756661,1.195908,58680.0,58679.0,0.0645]
[1725292756894,0.854077,58680.0,58679.0,0.1471]
[1725292757769,0.854077,58680.0,58679.0,0.15804437]
[1725292758250,0.852077,58680.0,58679.0,0.15804437]
[1725292758726,0.512246,58680.0,58679.0,0.15804437]
[1725292759208,0.511246,58680.0,58679.0,0.15804437]
[1725292762362,0.852077,58680.0,58679.0,0.15804437]
[1725292762719,0.170415,58680.0,58679.0,0.15804437]
[1725292762930,0.170408,58683.0,58681.0,0.138]
[1725292763122,0.170408,58683.0,58682.0,0.0619]
[1725292763334,0.170408,58683.0,58682.0,0.07283551]
[1725292763801,0.511222,58683.0,58682.0,0.07283551]
[1725292764140,0.170408,58683.0,58682.0,0.07283551]
[1725292764146,0.852036,58683.0,58682.0,0.07283551]
[1725292764344,0.852036,58683.0,58682.0,0.0619]
[1725292764753,1.19385,58683.0,58682.0,0.0619]
[1725292765170,1.19685,58683.0,58682.0,0.0619]
[1725292765380,1.27774583,58683.0,58682.0,0.0619]
[1725292765581,1.19685,58683.0,58682.0,0.0619]
[1725292765799,1.19385,58683.0,58682.0,0.0619]
[1725292766013,1.19685,58683.0,58682.0,0.0619]
[1725292766936,1.19685,58683.0,58671.0,0.0004]
[1725292766937,0.340827,58681.0,58671.0,0.0004]
[1725292767181,0.511268,58678.0,58677.0,0.0755]
[1725292767357,0.852115,58678.0,58677.0,0.0755]
[1725292767603,0.852115,58678.0,58677.0,0.1389]
[1725292767794,1.192962,58678.0,58677.0,0.1389]
[1725292768384,1.193962,58678.0,58677.0,0.1389]
[1725292769198,1.193962,58678.0,58677.0,0.1399]
[1725292770041,1.52658414,58678.0,58677.0,0.1399]
[1725292770289,1.52658414,58678.0,58677.0,0.001]
[1725292770503,1.38780376,58678.0,58677.0,0.001]
[1725292770707,1.38680376,58678.0,58677.0,0.001]
[1725292770937,0.85215,58675.0,58674.0,0.0603]
[1725292771175,1.19301,58675.0,58674.0,0.0603]
[1725292776436,1.193052,58673.0,58672.0,0.062]
[1725292777037,1.193052,58673.0,58672.0,0.07295891]
[1725292777302,1.193052,58673.0,58672.0,0.062]
[1725292778046,0.85218,58673.0,58672.0,0.062]
[1725292778712,0.85218,58673.0,58672.0,0.1437]
[1725292778917,0.511308,58673.0,58672.0,0.1437]
[1725292779130,0.170431,58675.0,58672.0,0.0926727]
[1725292779415,0.170431,58675.0,58673.0,0.06]
[1725292779642,0.170431,58675.0,58673.0,0.07097778]
[1725292781154,0.170433,58674.0,58673.0,0.07097778]
[1725292781353,0.17043,58675.0,58673.0,0.07097778]
[1725292781477,0.340847,58678.0,58673.0,0.07097778]
[1725292781674,0.340851,58677.0,58673.0,0.07097778]
[1725292781881,0.170431,58675.0,58673.0,0.07097778]
[1725292782985,0.170426,58677.0,58674.0,0.0607]
[1725292783221,0.170427,58676.0,58674.0,0.07167043]
[1725292783423,0.170424,58677.0,58674.0,0.07167043]
[1725292783754,0.174423,58678.0,58674.0,0.24210243]
[1725292783968,0.170418,58679.0,58676.0,0.170426]
[1725292784166,0.170418,58679.0,58678.0,0.0617]
[1725292784368,0.511255,58679.0,58678.0,0.0617]
[1725292784596,0.511255,58679.0,58678.0,0.07265862]
[1725292784805,0.170418,58679.0,58678.0,0.06965862]
[1725292784955,0.511255,58679.0,58678.0,0.06965862]
[1725292785357,0.18591608,58679.0,58678.0,0.06965862]
[1725292785772,0.170415,58681.0,58678.0,0.06965862]
[1725292786215,0.170416,58680.0,58678.0,0.06965862]
[1725292786421,0.178418,58679.0,58678.0,0.06965862]
[1725292786892,0.175418,58679.0,58678.0,0.06965862]
[1725292787187,0.170418,58679.0,58678.0,0.06965862]
[1725292787509,0.170416,58680.0,58678.0,0.06965862]
[1725292787726,0.003,58679.0,58678.0,0.06965862]
[1725292788179,0.008,58679.0,58678.0,0.24007962]
[1725292788401,0.005,58679.0,58678.0,0.24007962]
[1725292789129,0.005,58679.0,58678.0,0.06965862]
[1725292789823,0.005,58679.0,58678.0,0.24007962]
[1725292790756,0.008,58679.0,58678.0,0.24007962]
[1725292791227,0.008,58679.0,58678.0,0.06965862]
[1725292791458,0.008,58679.0,58678.0,0.24007962]
[1725292792176,0.008,58679.0,58678.0,0.58092262]
[1725292792384,0.008,58679.0,58678.0,0.24007962]
[1725292794092,0.008,58679.0,58678.0,0.31547962]
[1725292794315,0.008,58679.0,58678.0,0.14505862]
[1725292795063,0.005,58679.0,58678.0,0.14505862]
[1725292795478,0.170413,58681.0,58678.0,0.14505862]
[1725292795690,0.170418,58679.0,58678.0,0.14705862]
[1725292795906,0.511255,58679.0,58678.0,0.14705862]
[1725292796506,0.511255,58679.0,58678.0,0.1341]
[1725292796712,0.511255,58679.0,58678.0,0.14504649]
[1725292797139,0.170418,58679.0,58678.0,0.14504649]
[1725292798209,0.511255,58679.0,58678.0,0.14504649]
[1725292798652,0.511255,58679.0,58678.0,0.14704649]
[1725292799972,0.170418,58679.0,58678.0,0.14704649]
[1725292801155,0.340822,58682.0,58678.0,0.14667649]
[1725292802116,0.170418,58679.0,58678.0,0.14467649]
[1725292803479,0.170418,58679.0,58678.0,0.14667649]
[1725292803733,0.340794,58687.0,58678.0,0.14667649]
[1725292803734,0.340809,58684.0,58678.0,0.14667649]
[1725292803977,0.170397,58687.0,58684.0,0.170403]
[1725292804221,0.2040914,58691.0,58689.0,0.0777]
[1725292804457,0.170386,58690.0,58680.0,0.0777]
[1725292804682,0.2040914,58691.0,58685.0,0.340799]
[1725292804943,0.2040914,58691.0,58686.0,0.0777]
[1725292805150,0.3744754,58691.0,58688.0,0.167392]
[1725292806305,0.3744754,58691.0,58687.0,0.170394]
[1725292806770,0.3744754,58691.0,58688.0,0.170391]
[1725292807005,0.170386,58690.0,58689.0,0.0653]
[1725292807237,0.340796,58686.0,58685.0,0.001]
[1725292807464,0.511194,58686.0,58685.0,0.001]
[1725292807679,0.85199,58686.0,58685.0,0.001]
[1725292807920,0.170412,58682.0,58680.0,0.0653]
[1725292808143,0.170408,58683.0,58680.0,0.0653]
[1725292808363,0.170404,58684.0,58681.0,0.170412]
[1725292808605,0.340782,58689.0,58681.0,0.340824]
[1725292808861,0.001,58686.0,58685.0,0.005]
[1725292809091,0.170394,58688.0,58685.0,0.0655]
[1725292809317,0.170394,58688.0,58686.0,0.0801]
[1725292809546,0.170395,58687.0,58686.0,0.0791]
[1725292809773,0.17039,58689.0,58686.0,0.0791]
[1725292809995,0.17039,58689.0,58686.0,0.249498]
[1725292810207,0.17139,58689.0,58686.0,0.0791]
[1725292810727,0.001,58689.0,58688.0,0.170392]
[1725292810959,0.001,58689.0,58688.0,0.0628]
[1725292811192,0.001,58689.0,58688.0,0.573977]
[1725292811442,0.10204573,58691.0,58690.0,0.234686]
[1725292811705,0.61319573,58691.0,58690.0,0.0653]
[1725292811936,0.10204573,58691.0,58690.0,0.0653]
[1725292812166,0.10204573,58691.0,58690.0,0.235686]
[1725292812401,0.10204573,58691.0,58690.0,0.576459]
[1725292812634,0.10204573,58691.0,58690.0,0.658059]
[1725292812834,0.10304573,58691.0,58690.0,0.658059]
[1725292813282,0.10404573,58691.0,58690.0,0.1529]
[1725292813762,0.10404573,58691.0,58690.0,0.664059]
[1725292814037,0.002,58691.0,58690.0,0.664059]
[1725292814273,0.002,58691.0,58690.0,0.323286]
[1725292814523,0.002,58691.0,58690.0,0.664059]
[1725292815016,0.002,58691.0,58690.0,0.323286]
[1725292815732,0.002,58691.0,58690.0,0.664059]
[1725292816712,0.002,58691.0,58690.0,1.56308398]
[1725292816964,0.002,58691.0,58690.0,0.664059]
[1725292817430,0.002,58691.0,58690.0,1.004832]
[1725292820041,0.002,58691.0,58690.0,1.027832]
[1725292820279,0.002,58691.0,58690.0,0.1529]
[1725292821182,0.172383,58691.0,58690.0,0.1529]
[1725292821624,0.853917,58691.0,58690.0,0.01]
[1725292822907,1.258784,58691.0,58690.0,0.01]
[1725292831979,1.37549231,58691.0,58690.0,0.01]
[1725292832422,1.20310931,58691.0,58690.0,0.01]
[1725292832837,1.37349231,58691.0,58690.0,0.01]
[1725292835405,1.30939231,58691.0,58690.0,0.01]
[1725292835816,1.30939231,58691.0,58690.0,0.0707]
[1725292836244,1.30939231,58691.0,58690.0,0.01]
[1725292836879,1.192684,58691.0,58690.0,0.01]
[1725292837717,0.851917,58691.0,58690.0,0.01]
[1725292840839,0.51115,58691.0,58690.0,0.01]
[1725292841251,0.51115,58691.0,58690.0,0.02303569]
[1725292841461,0.51115,58691.0,58690.0,0.01]
[1725292841665,0.51115,58691.0,58690.0,0.02303569]
[1725292841876,0.51115,58691.0,58690.0,0.01]
[1725292842092,0.51115,58691.0,58690.0,0.02303569]
[1725292842335,0.51115,58691.0,58690.0,0.01]
[1725292842558,0.51115,58691.0,58690.0,0.02303569]
[1725292843005,0.170383,58691.0,58690.0,0.02303569]
[1725292844095,0.51115,58691.0,58690.0,0.02303569]
[1725292844986,0.851917,58691.0,58690.0,0.02303569]
[1725292845195,0.851917,58691.0,58690.0,0.01]
[1725292848333,1.192684,58691.0,58690.0,0.01]
[1725292849852,0.350803,58685.0,58672.0,0.078]
[1725292850064,0.17043,58675.0,58672.0,0.078]
[1725292850293,0.85215,58675.0,58672.0,0.078]
[1725292850516,0.170436,58673.0,58672.0,0.078]
[1725292850964,0.170431,58675.0,58673.0,0.0662]
[1725292851181,0.170433,58674.0,58673.0,0.0662]
[1725292851859,0.340856,58676.0,58673.0,0.0662]
[1725292852070,0.170433,58674.0,58673.0,0.0662]
[1725292852297,0.340856,58676.0,58673.0,0.0702]
[1725292852734,0.340856,58676.0,58673.0,0.0662]
[1725292852948,0.17143,58675.0,58674.0,0.006]
[1725292853170,0.17043,58675.0,58673.0,0.0702]
[1725292853500,0.340856,58676.0,58673.0,0.0742]
[1725292853501,0.170433,58674.0,58673.0,0.0742]
[1725292854584,0.170433,58674.0,58673.0,0.008]
[1725292854585,1.30973931,58674.0,58673.0,0.008]
[1725292854827,1.30973931,58674.0,58673.0,0.004]
[1725292854828,0.99132199,58674.0,58673.0,0.004]
[1725292855032,0.852195,58672.0,58671.0,0.0004]
[1725292855248,1.193073,58672.0,58671.0,0.0004]
[1725292857396,1.193073,58672.0,58671.0,0.0034]
[1725292857672,1.193073,58672.0,58671.0,0.0064]
[1725292860669,1.193073,58672.0,58671.0,0.1542]
[1725292860670,0.170439,58672.0,58671.0,0.1542]
[1725292860884,0.170437,58673.0,58671.0,0.1542]
[1725292861110,0.170424,58677.0,58671.0,0.1655098]
[1725292861318,0.170427,58676.0,58671.0,0.3359498]
[1725292861534,0.170427,58677.0,58672.0,0.170437]
[1725292861763,0.170427,58677.0,58671.0,0.1655098]
[1725292861764,0.170429,58676.0,58671.0,0.3359508]
[1725292861987,0.340851,58677.0,58672.0,0.01130684]
[1725292862196,0.170427,58676.0,58672.0,0.01130684]
[1725292862410,0.340817,58683.0,58675.0,0.0636]
[1725292862641,0.170419,58679.0,58675.0,0.234028]
[1725292862851,0.51124,58681.0,58676.0,0.18172203]
[1725292863085,0.170414,58681.0,58677.0,0.170423]
[1725292863324,0.17042,58679.0,58676.0,0.01129503]
[1725292863581,0.11670831,58681.0,58678.0,0.01128912]
[1725292863777,0.170417,58680.0,58679.0,0.01128617]
[1725292864035,0.170417,58680.0,58676.0,0.170426]
[1725292864248,0.170417,58680.0,58679.0,0.01128617]
[1725292864466,0.170419,58679.0,58676.0,0.168426]
[1725292865334,0.003,58677.0,58675.0,0.234029]
[1725292865539,0.003,58677.0,58675.0,0.0636]
[1725292865746,0.170422,58678.0,58675.0,0.234028]
[1725292866161,0.170422,58678.0,58676.0,0.001]
[1725292866377,0.511273,58677.0,58676.0,0.001]
[1725292866589,0.96883031,58677.0,58676.0,0.002]
[1725292867017,0.852122,58677.0,58676.0,0.001]
[1725292867468,0.852122,58677.0,58671.0,0.062]
[1725292867469,0.511317,58672.0,58671.0,0.0004]
[1725292868195,1.193073,58672.0,58671.0,0.0004]
[1725292869182,1.194073,58672.0,58671.0,0.0104]
[1725292869442,1.195073,58672.0,58671.0,0.0194]
[1725292870681,1.257473,58672.0,58671.0,0.0194]
[1725292870923,1.195073,58672.0,58671.0,0.0194]
[1725292871166,0.854195,58672.0,58671.0,0.0194]
[1725292871415,0.513317,58672.0,58671.0,0.0194]
[1725292871649,0.002,58672.0,58671.0,0.333541]
[1725292872103,0.002,58672.0,58671.0,0.6857308]
[1725292872356,0.002,58672.0,58671.0,0.7087308]
[1725292872606,0.002,58672.0,58671.0,0.1744068]
[1725292878297,0.002,58672.0,58671.0,0.3448478]
[1725292879430,0.002,58672.0,58671.0,0.6857308]
[1725292880088,0.002,58672.0,58671.0,1.3904968]
[1725292880580,0.002,58672.0,58671.0,1.58510863]
[1725292882970,0.002,58672.0,58671.0,1.92599163]
[1725292883409,0.002,58672.0,58671.0,2.27599163]
[1725292883840,0.002,58672.0,58671.0,2.26699163]
[1725292883841,0.001,58672.0,58671.0,2.26699163]
[1725292884276,0.002,58672.0,58671.0,2.27399163]
[1725292884489,0.002,58672.0,58671.0,2.26399163]
[1725292884490,0.001,58672.0,58671.0,2.26399163]
[1725292884699,0.001,58672.0,58671.0,2.26599163]
[1725292885117,0.002,58672.0,58671.0,2.26399163]
[1725292885350,0.003,58672.0,58671.0,2.27799163]
[1725292886395,0.003,58672.0,58671.0,1.7424968]
[1725292888754,0.003,58672.0,58671.0,1.93710863]
[1725292889611,0.003,58672.0,58671.0,2.37799163]
[1725292890704,0.003,58672.0,58671.0,2.78087463]
[1725292891111,0.003,58672.0,58671.0,2.88304459]
[1725292891317,0.003,58672.0,58671.0,2.54216159]
[1725292891556,0.170378,58693.0,58674.0,0.002]
[1725292891775,0.170381,58692.0,58689.0,0.170388]
[1725292892196,0.170381,58692.0,58690.0,0.00938369]
[1725292892383,0.170381,58692.0,58689.0,0.170388]
[1725292892612,0.340747,58695.0,58688.0,0.404484]
[1725292892818,0.340747,58695.0,58689.0,0.00938664]
[1725292893027,0.340747,58695.0,58689.0,0.170388]
[1725292893028,0.340748,58695.0,58689.0,0.170388]
[1725292893245,0.170378,58693.0,58690.0,0.17975841]
[1725292893714,0.170378,58693.0,58690.0,0.00937241]
[1725292893715,0.233083,58691.0,58690.0,0.00937241]
[1725292893925,0.914617,58691.0,58690.0,0.00937241]
[1725292894111,0.170397,58687.0,58683.0,0.170406]
[1725292894592,0.170397,58687.0,58684.0,0.17979421]
[1725292895456,0.170393,58688.0,58685.0,0.1704]
[1725292895719,0.0627,58691.0,58687.0,0.170394]
[1725292895945,0.0622,58693.0,58686.0,0.00938837]
[1725292896154,0.170386,58691.0,58687.0,0.170395]
[1725292896366,0.170386,58691.0,58687.0,0.00938542]
[1725292896367,0.340769,58691.0,58687.0,0.00938542]
[1725292896582,0.511177,58688.0,58687.0,0.00938542]
[1725292896794,0.340785,58688.0,58683.0,0.170404]
[1725292897041,0.340785,58688.0,58681.0,0.340821]
[1725292897042,0.0622,58693.0,58687.0,0.00938443]
[1725292897273,0.170388,58690.0,58687.0,0.007]
[1725292897481,0.170388,58690.0,58688.0,0.00938156]
[1725292898865,0.170386,58690.0,58688.0,0.00938156]
[1725292899075,0.170386,58690.0,58686.0,0.170397]
[1725292899267,0.170386,58690.0,58689.0,0.0093786]
[1725292899490,0.170386,58690.0,58688.0,0.008]
[1725292899703,0.170386,58690.0,58689.0,0.0093786]
[1725292901070,0.170386,58690.0,58689.0,0.007]
[1725292901282,0.170386,58690.0,58689.0,0.0163786]
[1725292901491,0.170386,58690.0,58689.0,0.007]
[1725292901694,0.170386,58690.0,58689.0,0.0163786]
[1725292901933,0.170386,58690.0,58689.0,0.007]
[1725292902176,0.170386,58690.0,58689.0,0.0243729]
[1725292902388,0.170386,58690.0,58689.0,0.015]
[1725292902594,0.170386,58690.0,58689.0,0.0243729]
[1725292904916,0.511159,58690.0,58689.0,0.0243729]
[1725292905148,0.851932,58690.0,58689.0,0.0243729]
[1725292905374,0.511159,58690.0,58689.0,0.0243729]
[1725292905608,0.511159,58690.0,58689.0,0.015]
[1725292905843,0.511159,58690.0,58689.0,0.0243729]
[1725292906794,0.170384,58691.0,58689.0,0.0243729]
[1725292907036,0.07647607,58704.0,58689.0,0.0243729]
[1725292907037,0.41715407,58707.0,58690.0,0.1624]
[1725292907266,0.170353,58702.0,58698.0,0.170362]
[1725292907478,0.170355,58701.0,58698.0,0.170362]
[1725292907687,0.170355,58701.0,58690.0,0.0982]
[1725292907688,0.170357,58700.0,58699.0,0.00934214]
[1725292907895,0.170357,58700.0,58699.0,0.0635]
[1725292908108,0.170357,58700.0,58699.0,0.07284214]
[1725292908611,0.3407,58703.0,58699.0,0.07284214]
[1725292908612,0.170355,58701.0,58699.0,0.07284214]
[1725292909302,0.170355,58701.0,58699.0,0.07584214]
[1725292909513,0.170355,58701.0,58699.0,0.07284214]
[1725292909944,0.170355,58701.0,58699.0,0.07484214]
[1725292910379,0.170353,58702.0,58699.0,0.07384214]
[1725292910598,0.170355,58701.0,58699.0,0.07384214]
[1725292910814,0.3407,58703.0,58700.0,0.247756]
[1725292910815,0.170351,58703.0,58700.0,0.247756]
[1725292911024,0.340697,58704.0,58699.0,0.07384214]
[1725292911252,0.170351,58703.0,58700.0,0.00932835]
[1725292911462,0.340697,58704.0,58700.0,0.00932835]
[1725292911463,0.170352,58702.0,58700.0,0.00932835]
[1725292912988,0.170349,58703.0,58700.0,0.17968535]
[1725292913216,0.170346,58704.0,58701.0,0.170354]
[1725292913434,0.170346,58704.0,58702.0,0.00932245]
[1725292913664,0.170335,58708.0,58701.0,0.340708]
[1725292913898,0.170339,58707.0,58703.0,0.1796675]
[1725292914129,0.34066,58710.0,58703.0,0.170348]
[1725292914130,0.17034,58706.0,58703.0,0.170348]
[1725292914341,0.17034,58706.0,58704.0,0.00931655]
[1725292914770,0.170343,58705.0,58704.0,0.00931655]
[1725292915233,0.170343,58705.0,58704.0,0.00930449]
[1725292915467,0.146,58724.0,58708.0,0.0613]
[1725292915689,0.17031,58717.0,58712.0,0.170322]
[1725292916124,0.170312,58716.0,58713.0,0.00926966]
[1725292916376,0.340611,58718.0,58713.0,0.00926966]
[1725292916377,0.340619,58717.0,58713.0,0.00926966]
[1725292916610,0.170313,58716.0,58713.0,0.0765]
[1725292916826,0.170313,58716.0,58714.0,0.00926671]
[1725292917281,0.340611,58718.0,58714.0,0.00926671]
[1725292917505,0.170308,58717.0,58714.0,0.00926671]
[1725292917722,0.170305,58719.0,58714.0,0.17958171]
[1725292917936,0.170306,58718.0,58714.0,0.17958171]
[1725292918382,0.340597,58721.0,58714.0,0.17958171]
[1725292918383,0.170308,58717.0,58714.0,0.17958171]
[1725292918609,0.170305,58719.0,58715.0,0.231214]
[1725292918841,0.170305,58718.0,58715.0,0.231214]
[1725292919074,0.170305,58718.0,58716.0,0.00926081]
[1725292919303,0.1703,58720.0,58716.0,0.17957081]
[1725292920181,0.1703,58720.0,58717.0,0.170307]
[1725292920451,0.1703,58720.0,58716.0,0.17957081]
[1725292920696,0.571207,58719.0,58718.0,0.00923795]
[1725292920908,0.571207,58719.0,58709.0,0.0801]
[1725292920909,0.510916,58718.0,58717.0,0.00924089]
[1725292921136,0.170317,58714.0,58710.0,0.170328]
[1725292921665,0.0603,58719.0,58711.0,0.00925057]
[1725292921666,0.340617,58717.0,58711.0,0.00925057]
[1725292921890,0.170317,58714.0,58711.0,0.00925057]
[1725292922112,0.340622,58716.0,58711.0,0.00925057]
[1725292922113,0.510967,58712.0,58711.0,0.00925057]
[1725292922328,0.510967,58712.0,58704.0,0.1448]
[1725292922329,0.17034,58706.0,58704.0,0.1448]
[1725292922549,0.17034,58706.0,58700.0,0.340714]
[1725292922768,0.17034,58706.0,58705.0,0.00926844]
[1725292923204,0.17034,58706.0,58702.0,0.170351]
[1725292923424,0.17034,58706.0,58705.0,0.00926844]
[1725292923655,0.0808,58711.0,58699.0,0.0658]
[1725292923656,0.27541183,58711.0,58699.0,0.0658]
[1725292923922,0.27541183,58711.0,58695.0,0.4704]
[1725292923923,0.8517,58706.0,58705.0,0.01726844]
[1725292924170,1.19238,58706.0,58705.0,0.008]
[1725292924398,1.19238,58706.0,58694.0,0.0498627]
[1725292924399,0.511116,58695.0,58694.0,0.0498627]
[1725292924830,0.511116,58695.0,58694.0,0.0093009]
[1725292925259,0.511116,58695.0,58690.0,0.0756]
[1725292925260,0.340744,58695.0,58690.0,0.0756]
[1725292925479,0.170381,58692.0,58690.0,0.0756]
[1725292925710,0.170381,58692.0,58691.0,0.00930975]
[1725292927395,0.170381,58692.0,58691.0,0.02330975]
[1725292927396,0.171381,58692.0,58691.0,0.02330975]
[1725292928312,0.852903,58692.0,58691.0,0.028]
[1725292928524,0.512142,58692.0,58691.0,0.03730975]
[1725292928741,0.512142,58692.0,58691.0,0.028]
[1725292928979,0.512142,58692.0,58691.0,0.03730975]
[1725292929631,0.852903,58692.0,58691.0,0.03730975]
[1725292931482,0.512142,58692.0,58691.0,0.03730975]
[1725292933092,0.852903,58692.0,58691.0,0.03730975]
[1725292934500,1.38827583,58692.0,58691.0,0.03730975]
[1725292934725,1.52917583,58692.0,58691.0,0.03730975]
[1725292934971,1.52917583,58692.0,58691.0,0.028]
[1725292935436,1.258664,58692.0,58691.0,0.028]
[1725292936205,0.852903,58692.0,58691.0,0.028]
[1725292936669,1.193664,58692.0,58691.0,0.028]
[1725292939562,0.852903,58692.0,58691.0,0.028]
[1725292939820,0.001,58692.0,58691.0,0.0896]
[1725292940060,0.17138,58692.0,58691.0,0.0896]
[1725292940299,0.17138,58692.0,58691.0,0.09895838]
[1725292940546,0.512141,58692.0,58691.0,0.0896]
[1725292941032,0.512141,58692.0,58691.0,0.09895838]
[1725292941510,0.17138,58692.0,58691.0,0.17945838]
[1725292941744,0.512141,58692.0,58691.0,0.17945838]
[1725292942244,0.17138,58692.0,58691.0,0.17945838]